fUST/lending_fUST_20250501
["ID","MTS","AMOUNT","RATE_DAILY","PERIOD"]
[359528670,1746094245016,-186.584867,0.0002798,7]
[359528673,1746094245025,-186.584867,0.0002798,7]
[359528675,1746094245035,-151.0,0.0002798,7]
[359528677,1746094245044,-151.0,0.0002798,7]
[359528679,1746094245053,-151.0,0.0002798,7]
[359528681,1746094245063,-264.787951,0.0002798,7]
[359528682,1746094245072,-264.787951,0.0002798,7]
[359528685,1746094245082,-155.458248,0.0002798,7]
[359528687,1746094245091,-734.530001,0.0002798,7]
[359528689,1746094245101,-734.530001,0.0002798,7]
[359528691,1746094245111,-155.458248,0.0002798,7]
[359528693,1746094245120,-208.342809,0.0002798,7]
[359528695,1746094245129,-208.342809,0.0002798,7]
[359528697,1746094245138,-151.0,0.0002798,7]
[359528699,1746094245149,-151.0,0.0002798,7]
[359528701,1746094245159,-151.0,0.0002798,7]
[359528703,1746094245168,-151.0,0.0002798,7]
[359528705,1746094245183,-1000.0,0.0002798,28]
[359528707,1746094245193,-1000.0,0.0002798,28]
[359528710,1746094245202,-1000.0,0.0002798,28]
[359528712,1746094245212,-1000.0,0.0002798,28]
[359528715,1746094245222,-1000.0,0.0002798,28]
[359528717,1746094245243,-1000.0,0.0002798,28]
[359528720,1746094245255,-1000.0,0.0002798,28]
[359528722,1746094245266,-1000.0,0.0002798,28]
[359528724,1746094245276,-1000.0,0.0002798,28]
[359528726,1746094245286,-1000.0,0.0002798,28]
[359528728,1746094245296,-1000.0,0.0002798,28]
[359528730,1746094245306,-1000.0,0.0002798,28]
[359528732,1746094245316,-1000.0,0.0002798,28]
[359528734,1746094245326,-1000.0,0.0002798,28]
[359528737,1746094245336,-1000.0,0.0002798,28]
[359528739,1746094245346,-946.644675,0.0002798,28]
[359528741,1746094245356,-970.490497,0.0002798,7]
[359528743,1746094245366,-970.490497,0.0002798,7]
[359528745,1746094245376,-238.909195,0.0002798,7]
[359528747,1746094245386,-530.316793,0.0002798,7]
[359528749,1746094245396,-442.590134,0.0002798,7]
[359528751,1746094245407,-530.316787,0.0002798,7]
[359528753,1746094245418,-442.590134,0.0002798,7]
[359528755,1746094245428,-362.263958,0.0002798,7]
[359528757,1746094245442,-362.263952,0.0002798,7]
[359528759,1746094245452,-221.757949,0.0002798,7]
[359528761,1746094245463,-221.757949,0.0002798,7]
[359528763,1746094245473,-259.612865,0.0002798,7]
[359528766,1746094245486,-259.612865,0.0002798,7]
[359528768,1746094245496,-839.71712,0.0002798,7]
[359528770,1746094245506,-839.71712,0.0002798,7]
[359528772,1746094245516,-151.0,0.0002798,7]
[359528774,1746094245526,-1115.391809,0.0002798,7]
[359528776,1746094245537,-1115.39180097,0.0002798,7]
[359528778,1746094245547,-572.883256,0.0002798,7]
[359528780,1746094245558,-572.883256,0.0002798,7]
[359528782,1746094245568,-161.35974344,0.00027989,10]
[359528784,1746094245578,-32459.42859224,0.0002799,2]
[359528786,1746094245588,-10000.0,0.00028,7]
[359528788,1746094245598,-160.0,0.00028,7]
[359528790,1746094245608,-12595.7684382,0.00028,7]
[359528793,1746094245618,-421.4777418,0.00028,7]
[359528795,1746094245628,-421.4777418,0.00028,3]
[359528797,1746094245638,-277.127724,0.000283,30]
[359528799,1746094245648,-607.54184964,0.00028404,5]
[359528801,1746094245657,-823.0,0.00028554,2]
[359528803,1746094245668,-823.0,0.00028555,2]
[359528805,1746094245678,-653.0,0.00028555,2]
[359528807,1746094245689,-1000.0,0.00028752,5]
[359528809,1746094245699,-302.80594358,0.00028752,5]
[359528811,1746094245709,-1500.0,0.00028848,5]
[359528813,1746094245719,-3292.0,0.00028957,2]
[359528815,1746094245729,-12595.7684382,0.0002898,3]
[359528817,1746094245739,-151.0,0.0002898,7]
[359528819,1746094245749,-250.65441137,0.0002899,2]
[359528821,1746094245759,-22260.70397327,0.00029,3]
[359528823,1746094245770,-873.09486309,0.00029,2]
[359528825,1746094245780,-3003.82611478,0.00029,10]
[359528827,1746094245791,-151.0,0.00029,7]
[359528829,1746094245801,-151.0,0.00029,7]
[359528832,1746094245811,-151.0,0.00029,7]
[359528834,1746094245821,-151.0,0.00029,7]
[359528836,1746094245831,-157.46577,0.00029,7]
[359528838,1746094245841,-157.46577,0.00029,7]
[359528840,1746094245851,-435.933854,0.00029,2]
[359528842,1746094245861,-435.933854,0.00029,2]
[359528844,1746094245872,-151.0,0.00029,7]
[359528846,1746094245882,-168.338232,0.00029,7]
[359528848,1746094245891,-212.485294,0.00029,7]
[359528850,1746094245901,-212.485294,0.00029,7]
[359528852,1746094245911,-341.119758,0.00029,7]
[359528854,1746094245921,-341.119758,0.00029,7]
[359528856,1746094245931,-186.584867,0.00029,7]
[359528858,1746094245940,-186.584867,0.00029,7]
[359528860,1746094245950,-151.0,0.00029,7]
[359528863,1746094245960,-292.956154,0.00029,7]
[359528865,1746094245971,-213.729768,0.00029,7]
[359528867,1746094245980,-264.787951,0.00029,7]
[359528869,1746094245989,-264.787951,0.00029,7]
[359528871,1746094245999,-155.458248,0.00029,7]
[359528873,1746094246009,-155.458248,0.00029,7]
[359528875,1746094246019,-151.0,0.00029,7]
[359528877,1746094246028,-151.0,0.00029,7]
[359528879,1746094246037,-151.0,0.00029,7]
[359528881,1746094246047,-151.0,0.00029,7]
[359528883,1746094246056,-970.490497,0.00029,7]
[359528885,1746094246065,-970.490497,0.00029,7]
[359528887,1746094246074,-421.4777418,0.00029,3]
[359528889,1746094246084,-160.0,0.00029,3]
[359528891,1746094246094,-442.590134,0.00029,7]
[359528893,1746094246103,-442.590134,0.00029,7]
[359528895,1746094246112,-259.612865,0.00029,7]
[359528897,1746094246122,-259.612865,0.00029,7]
[359528899,1746094246131,-839.71712,0.00029,7]
[359528901,1746094246140,-839.71712,0.00029,7]
[359528903,1746094246150,-151.0,0.00029,7]
[359528905,1746094246160,-572.883256,0.00029,7]
[359528907,1746094246170,-572.883264,0.00029,7]
[359528909,1746094246183,-156.893763,0.00029238,7]
[359528911,1746094246192,-156.893763,0.00029238,7]
[359528913,1746094246202,-871.15385704,0.00029323,2]
[359528915,1746094246212,-191.68058665,0.00029952,2]
[359528917,1746094246223,-69188.81595775,0.0003,7]
[359528919,1746094246232,-515.05970434,0.0003,15]
[359528921,1746094246243,-369.10312268,0.0003,2]
[359528924,1746094246256,-12595.7684382,0.0003,7]
[359528925,1746094246266,-151.0,0.0003,7]
[359528926,1746094246275,-1000.0,0.0003,2]
[359528927,1746094246284,-151.0,0.0003,7]
[359528928,1746094246294,-153.917845,0.0003,7]
[359528929,1746094246303,-151.0,0.0003,7]
[359528930,1746094246313,-151.0,0.0003,7]
[359528931,1746094246323,-151.0,0.0003,7]
[359528932,1746094246332,-293.279878,0.0003,7]
[359528933,1746094246342,-176.0,0.0003,2]
[359528934,1746094246351,-3060.30538708,0.00030008,2]
[359528935,1746094246360,-635.0,0.000301,2]
[359528936,1746094246370,-2000.0,0.00030123,4]
[359528937,1746094246379,-290.60865643,0.00030152,5]
[359528938,1746094246388,-1000.0,0.00030152,5]
[359528940,1746094246398,-1000.0,0.00030152,5]
[359528942,1746094246408,-500.0,0.00030152,5]
[359528944,1746094246418,-1001.78431801,0.00030152,5]
[359528946,1746094246428,-672.90116035,0.00030152,5]
[359528948,1746094246439,-501.63846269,0.00030152,5]
[359528950,1746094246449,-1000.0,0.00030152,5]
[359528952,1746094246459,-1000.0,0.00030152,5]
[359528954,1746094246469,-1000.0,0.00030152,5]
[359528956,1746094246480,-1000.0,0.00030152,5]
[359528958,1746094246489,-1000.0,0.00030152,5]
[359528960,1746094246500,-1000.0,0.00030252,5]
[359528962,1746094246510,-1009.42630553,0.00030252,5]
[359528965,1746094246520,-1000.0,0.00030252,5]
[359528967,1746094246530,-1000.0,0.00030252,5]
[359528969,1746094246540,-581.34675361,0.00030252,5]
[359528970,1746094246549,-250.0,0.000303,30]
[359528972,1746094246559,-151.0,0.00030352,7]
[359528975,1746094246570,-1001.21699452,0.00030352,5]
[359528977,1746094246580,-786.26615067,0.00030352,5]
[359528979,1746094246590,-1000.0,0.00030352,5]
[359528981,1746094246598,-1000.0,0.00030352,5]
[359528983,1746094246608,-500.0,0.00030352,5]
[359528985,1746094246618,-1000.0,0.00030352,5]
[359528987,1746094246628,-626.90881295,0.00030352,3]
[359528989,1746094246638,-1000.0,0.00030352,5]
[359528991,1746094246648,-1000.0,0.00030352,5]
[359528993,1746094246658,-1000.0,0.00030352,5]
[359528995,1746094246667,-1000.0,0.00030352,5]
[359528997,1746094246678,-1006.56622276,0.00030352,5]
[359529000,1746094246689,-619.34299103,0.00030352,5]
[359529002,1746094246699,-713.34599747,0.00030352,5]
[359529004,1746094246709,-500.0,0.00030352,5]
[359529006,1746094246719,-1000.0,0.00030352,5]
[359529008,1746094246729,-503.14672569,0.00030352,5]
[359529010,1746094246738,-1000.0,0.00030352,5]
[359529012,1746094246747,-151.0,0.00030444,7]
[359529014,1746094246757,-212.485294,0.00030444,7]
[359529016,1746094246766,-212.485294,0.00030444,7]
[359529018,1746094246776,-341.119758,0.00030444,7]
[359529020,1746094246785,-341.119758,0.00030444,7]
[359529022,1746094246794,-155.458248,0.00030452,7]
[359529023,1746094246804,-155.458248,0.00030452,7]
[359529026,1746094246815,-151.0,0.00030452,7]
[359529028,1746094246824,-220.806371,0.00030452,7]
[359529030,1746094246833,-970.490497,0.00030452,7]
[359529032,1746094246843,-970.490497,0.00030452,7]
[359529034,1746094246852,-442.590134,0.00030452,7]
[359529036,1746094246861,-442.590134,0.00030452,7]
[359529038,1746094246871,-1800.0,0.00030492,5]
[359529040,1746094246880,-579.0,0.0003102,2]
[359529042,1746094246890,-1152.0,0.00031021,2]
[359529044,1746094246900,-2000.0,0.00031111,4]
[359529046,1746094246910,-253.741,0.00031242,2]
[359529048,1746094246920,-511.857,0.00031425,2]
[359529050,1746094246929,-403.0,0.00031425,2]
[359529052,1746094246939,-151.0,0.00031448,7]
[359529054,1746094246949,-151.0,0.00031452,7]
[359529056,1746094246958,-1000.0,0.000315,20]
[359529058,1746094246968,-9000.0,0.000315,20]
[359529074,1746094247114,-151.0,0.000315,7]
[359529076,1746094247124,-167.10489,0.000315,7]
[359529078,1746094247134,-156.893763,0.000315,7]
[359529080,1746094247143,-156.893763,0.000315,7]
[359529082,1746094247152,-151.0,0.000315,7]
[359529084,1746094247162,-151.0,0.000315,7]
[359529086,1746094247172,-157.46577,0.000315,7]
[359529088,1746094247185,-157.46577,0.000315,7]
[359529090,1746094247194,-435.933854,0.000315,2]
[359529092,1746094247203,-435.933854,0.000315,2]
[359529094,1746094247215,-186.584867,0.000315,7]
[359529096,1746094247225,-186.584867,0.000315,7]
[359529098,1746094247234,-264.787951,0.000315,7]
[359529100,1746094247243,-264.787951,0.000315,7]
[359529102,1746094247253,-259.612865,0.000315,7]
[359529104,1746094247263,-259.612871,0.000315,7]
[359529106,1746094247272,-151.0,0.000315,7]
[359529108,1746094247281,-4609.0,0.00031605,3]
[359529110,1746094247290,-5000.0,0.00031674,2]
[359529112,1746094247300,-4155.05,0.000318,15]
[359529114,1746094247310,-4155.05,0.000318,20]
[359529116,1746094247319,-152.131,0.00031973,2]
[359529118,1746094247329,-108519.57187927,0.00032,30]
[359529120,1746094247338,-187.0,0.00032,120]
[359529122,1746094247348,-12595.7684382,0.00032,30]
[359529124,1746094247357,-231.08893,0.00032,7]
[359529126,1746094247367,-151.0,0.00032,7]
[359529128,1746094247377,-156.893763,0.00032,7]
[359529130,1746094247387,-156.893763,0.00032,7]
[359529132,1746094247396,-151.0,0.00032,7]
[359529134,1746094247406,-151.0,0.00032,7]
[359529136,1746094247415,-153.917845,0.00032,7]
[359529138,1746094247425,-151.0,0.00032,7]
[359529140,1746094247436,-151.0,0.00032,7]
[359529142,1746094247446,-283.908572,0.00032,7]
[359529144,1746094247456,-151.0,0.00032,7]
[359529146,1746094247465,-157.46577,0.00032,7]
[359529148,1746094247475,-157.46577,0.00032,7]
[359529151,1746094247484,-435.933854,0.00032,2]
[359529152,1746094247494,-435.933854,0.00032,2]
[359529155,1746094247504,-151.0,0.00032,7]
[359529157,1746094247514,-293.279878,0.00032,7]
[359529159,1746094247523,-212.485294,0.00032,7]
[359529161,1746094247533,-212.485294,0.00032,7]
[359529163,1746094247543,-341.119758,0.00032,7]
[359529165,1746094247553,-341.119758,0.00032,7]
[359529167,1746094247562,-186.584867,0.00032,7]
[359529169,1746094247572,-186.584867,0.00032,7]
[359529171,1746094247582,-151.0,0.00032,7]
[359529173,1746094247591,-264.787951,0.00032,7]
[359529175,1746094247602,-264.787951,0.00032,7]
[359529177,1746094247611,-734.530001,0.00032,7]
[359529179,1746094247621,-155.458248,0.00032,7]
[359529181,1746094247630,-734.530001,0.00032,7]
[359529183,1746094247640,-155.458248,0.00032,7]
[359529185,1746094247650,-208.342809,0.00032,7]
[359529187,1746094247660,-208.342809,0.00032,7]
[359529189,1746094247669,-213.087188,0.00032,7]
[359529191,1746094247679,-151.0,0.00032,7]
[359529193,1746094247688,-970.490497,0.00032,7]
[359529195,1746094247698,-970.490497,0.00032,7]
[359529197,1746094247708,-421.4777418,0.00032,30]
[359529199,1746094247717,-160.0,0.00032,30]
[359529201,1746094247727,-442.590134,0.00032,7]
[359529203,1746094247737,-442.590134,0.00032,7]
[359529205,1746094247746,-2000.0,0.00032098,4]
[359529207,1746094247756,-2100.0,0.00032136,5]
[359529209,1746094247765,-250.0,0.000323,30]
[359529211,1746094247775,-10000.0,0.000328,20]
[359529213,1746094247785,-5844.95,0.000328,7]
[359529215,1746094247795,-166.0,0.00032877,2]
[359529217,1746094247804,-500.0,0.00032877,5]
[359529219,1746094247814,-283.65041549,0.00032877,7]
[359529221,1746094247824,-50414.15,0.000329,30]
[359529223,1746094247833,-1890.59,0.000329,30]
[359529225,1746094247843,-160.0,0.000329,30]
[359529227,1746094247852,-4706.8,0.000329,30]
[359529229,1746094247861,-4895.7,0.000329,7]
[359529231,1746094247870,-176.0,0.00033,2]
[359529233,1746094247880,-2000.0,0.00033086,4]
[359529235,1746094247889,-150.0,0.00033116,2]
[359529237,1746094247899,-150.0,0.00033116,2]
[359529239,1746094247908,-566.586,0.00033116,2]
[359529241,1746094247918,-707.0,0.00033116,2]
[359529243,1746094247928,-2245.0,0.00033116,2]
[359529245,1746094247938,-362.0172928,0.00033123,30]
[359529247,1746094247948,-362.0172928,0.00033123,30]
[359529249,1746094247958,-362.0172928,0.00033123,30]
[359529251,1746094247967,-362.0172928,0.00033123,30]
[359529253,1746094247977,-362.0172928,0.00033123,30]
[359529255,1746094247986,-695.7477262,0.00033123,30]
[359529257,1746094247995,-1316.271747,0.00033165,2]
[359529259,1746094248005,-5000.0,0.00033341,2]
[359529261,1746094248014,-151.0,0.00033699,14]
[359529263,1746094248024,-734.530001,0.00033699,14]
[359529265,1746094248034,-734.530001,0.00033699,14]
[359529267,1746094248043,-208.342809,0.00033699,14]
[359529269,1746094248053,-208.342809,0.00033699,14]
[359529271,1746094248063,-1613.0,0.000337,2]
[359529273,1746094248072,-151.0,0.00033779,14]
[359529275,1746094248082,-212.485294,0.00033779,14]
[359529278,1746094248092,-212.485294,0.00033779,14]
[359529280,1746094248103,-341.119758,0.00033779,14]
[359529282,1746094248113,-341.119758,0.00033779,14]
[359529284,1746094248123,-264.787951,0.00033779,14]
[359529285,1746094248132,-264.787951,0.00033779,14]
[359529287,1746094248142,-2400.0,0.00033779,5]
[359529290,1746094248152,-2000.0,0.00034074,4]
[359529292,1746094248161,-157.46577,0.00034082,14]
[359529294,1746094248171,-157.46577,0.00034082,14]
[359529295,1746094248187,-155.458248,0.00034082,14]
[359529297,1746094248196,-155.458248,0.00034082,14]
[359529298,1746094248206,-151.0,0.00034082,14]
[359529299,1746094248216,-970.490497,0.00034082,14]
[359529300,1746094248227,-970.490497,0.00034082,14]
[359529301,1746094248237,-442.590134,0.00034082,14]
[359529302,1746094248247,-442.590134,0.00034082,14]
[359529303,1746094248257,-500.0,0.000341,2]
[359529304,1746094248267,-217.74313736,0.00034204,15]
[359529305,1746094248278,-153.0,0.00034219,30]
[359529306,1746094248287,-1034.16791787,0.00034247,5]
[359529307,1746094248297,-4706.8,0.000343,30]
[359529308,1746094248307,-4895.7,0.000343,7]
[359529309,1746094248316,-250.0,0.000343,30]
[359529311,1746094248326,-179.80221756,0.0003441,12]
[359529313,1746094248336,-403.0,0.00034425,2]
[359529315,1746094248346,-403.0,0.00034425,2]
[359529317,1746094248356,-4632.0,0.00034495,3]
[359529319,1746094248366,-727.30121309,0.000345,60]
[359529321,1746094248377,-1890.59,0.000348,30]
[359529324,1746094248387,-264.43294597,0.00035,30]
[359529326,1746094248397,-10000.0,0.00035,4]
[359529327,1746094248407,-5000.0,0.00035007,2]
[359529329,1746094248419,-151.0,0.00035041,14]
[359529332,1746094248431,-151.0,0.00035041,14]
[359529333,1746094248441,-2000.0,0.00035061,4]
[359529336,1746094248451,-267.61761377,0.00035068,3]
[359529337,1746094248461,-50414.15,0.000351,30]
[359529339,1746094248471,-151.0,0.000351,14]
[359529342,1746094248481,-156.893763,0.000351,14]
[359529344,1746094248491,-156.893763,0.000351,14]
[359529346,1746094248501,-151.0,0.000351,14]
[359529348,1746094248511,-153.917845,0.000351,14]
[359529350,1746094248520,-151.0,0.000351,14]
[359529352,1746094248530,-167.80834604,0.000351,14]
[359529354,1746094248540,-435.933854,0.000351,2]
[359529356,1746094248550,-435.933854,0.000351,2]
[359529358,1746094248560,-293.279878,0.000351,14]
[359529360,1746094248570,-186.584867,0.000351,14]
[359529362,1746094248580,-186.584867,0.000351,14]
[359529364,1746094248590,-2700.0,0.00035423,5]
[359529366,1746094248600,-171.3618863,0.00035616,2]
[359529368,1746094248610,-500.0,0.00035616,2]
[359529370,1746094248619,-500.0,0.00035616,2]
[359529372,1746094248629,-500.0,0.00035616,2]
[359529374,1746094248638,-500.0,0.00035616,2]
[359529376,1746094248649,-500.0,0.00035616,2]
[359529378,1746094248658,-500.0,0.00035616,2]
[359529380,1746094248667,-500.0,0.00035616,2]
[359529382,1746094248677,-500.0,0.00035616,2]
[359529384,1746094248688,-500.0,0.00035616,2]
[359529386,1746094248698,-500.0,0.00035616,2]
[359529388,1746094248708,-500.0,0.00035616,2]
[359529390,1746094248717,-500.0,0.00035616,2]
[359529392,1746094248727,-500.0,0.00035616,2]
[359529394,1746094248737,-500.0,0.00035616,2]
[359529396,1746094248746,-164.16650168,0.00035616,2]
[359529398,1746094248756,-151.0,0.00035616,2]
[359529400,1746094248765,-151.0,0.00035616,2]
[359529402,1746094248775,-151.0,0.00035616,2]
[359529404,1746094248784,-245.0,0.00035616,2]
[359529406,1746094248793,-500.0,0.00035616,2]
[359529408,1746094248802,-500.0,0.00035616,2]
[359529410,1746094248812,-500.0,0.00035616,2]
[359529412,1746094248821,-500.0,0.00035616,2]
[359529414,1746094248831,-500.0,0.00035616,2]
[359529416,1746094248842,-297.3987616,0.00035616,2]
[359529418,1746094248852,-500.0,0.00035616,2]
[359529420,1746094248861,-500.0,0.00035616,2]
[359529422,1746094248870,-500.0,0.00035616,2]
[359529424,1746094248879,-425.4044992,0.00035616,2]
[359529426,1746094248889,-151.0,0.00035616,2]
[359529428,1746094248898,-151.11527991,0.00035616,2]
[359529430,1746094248908,-183.31604384,0.00035616,2]
[359529432,1746094248917,-500.0,0.00035616,2]
[359529434,1746094248927,-501.73188187,0.00035616,2]
[359529436,1746094248938,-151.0,0.00035616,2]
[359529438,1746094248948,-207.81013723,0.00035616,2]
[359529440,1746094248957,-500.0,0.00035616,2]
[359529442,1746094248966,-500.0,0.00035616,2]
[359529444,1746094248976,-500.0,0.00035616,2]
[359529446,1746094248985,-500.0,0.00035616,2]
[359529448,1746094248994,-500.0,0.00035616,2]
[359529450,1746094249003,-622.36393771,0.00035616,2]
[359529452,1746094249014,-500.0,0.00035616,2]
[359529454,1746094249024,-500.0,0.00035616,2]
[359529456,1746094249033,-500.0,0.00035616,2]
[359529458,1746094249042,-415.02869661,0.00035616,2]
[359529460,1746094249052,-500.0,0.00035616,2]
[359529462,1746094249062,-500.0,0.00035616,2]
[359529464,1746094249071,-274.34453225,0.00035616,2]
[359529467,1746094249081,-500.0,0.00035616,2]
[359529468,1746094249090,-500.0,0.00035616,2]
[359529470,1746094249100,-500.0,0.00035616,2]
[359529472,1746094249110,-500.0,0.00035616,2]
[359529475,1746094249119,-500.0,0.00035616,2]
[359529485,1746094249251,-500.0,0.00035616,2]
[359529486,1746094249262,-500.0,0.00035616,2]
[359529488,1746094249272,-500.0,0.00035616,2]
[359529489,1746094249282,-500.0,0.00035616,2]
[359529491,1746094249291,-500.0,0.00035616,2]
[359529492,1746094249301,-500.0,0.00035616,2]
[359529494,1746094249310,-241.85614511,0.00035616,2]
[359529495,1746094249320,-151.0,0.00035616,2]
[359529497,1746094249330,-151.39996874,0.00035616,2]
[359529498,1746094249340,-151.0,0.00035616,2]
[359529500,1746094249350,-151.38140023,0.00035616,2]
[359529502,1746094249361,-162.30995612,0.00035616,2]
[359529504,1746094249371,-151.0,0.00035616,2]
[359529505,1746094249380,-151.45422153,0.00035616,2]
[359529506,1746094249389,-500.0,0.00035616,2]
[359529508,1746094249399,-500.0,0.00035616,2]
[359529510,1746094249409,-155.0461907,0.00035616,2]
[359529511,1746094249418,-151.0,0.00035616,2]
[359529513,1746094249427,-156.86608378,0.00035616,2]
[359529515,1746094249438,-151.0,0.00035616,2]
[359529516,1746094249447,-152.28056339,0.00035616,2]
[359529518,1746094249457,-500.0,0.00035616,2]
[359529519,1746094249466,-500.0,0.00035616,2]
[359529520,1746094249476,-500.0,0.00035616,2]
[359529521,1746094249485,-500.0,0.00035616,2]
[359529522,1746094249494,-500.0,0.00035616,2]
[359529523,1746094249504,-500.0,0.00035616,2]
[359529524,1746094249513,-500.0,0.00035616,2]
[359529525,1746094249522,-500.0,0.00035616,2]
[359529526,1746094249531,-500.0,0.00035616,2]
[359529527,1746094249541,-500.0,0.00035616,2]
[359529528,1746094249550,-500.0,0.00035616,2]
[359529529,1746094249559,-500.0,0.00035616,2]
[359529530,1746094249568,-500.0,0.00035616,2]
[359529531,1746094249578,-500.0,0.00035616,2]
[359529532,1746094249587,-500.0,0.00035616,2]
[359529533,1746094249596,-500.0,0.00035616,2]
[359529534,1746094249605,-167.05194375,0.00035616,2]
[359529535,1746094249614,-151.72048485,0.00035616,2]
[359529536,1746094249623,-151.0,0.00035616,2]
[359529537,1746094249632,-151.0,0.00035616,2]
[359529538,1746094249641,-151.0,0.00035616,2]
[359529539,1746094249650,-151.0,0.00035616,2]
[359529540,1746094249659,-151.0,0.00035616,2]
[359529541,1746094249668,-245.0,0.00035616,2]
[359529542,1746094249677,-151.0,0.00035616,2]
[359529543,1746094249687,-151.0,0.00035616,2]
[359529544,1746094249696,-151.0,0.00035616,2]
[359529545,1746094249706,-151.0,0.00035616,2]
[359529546,1746094249716,-210.11455547,0.00035616,2]
[359529547,1746094249725,-151.0,0.00035616,2]
[359529548,1746094249735,-500.0,0.00035616,2]
[359529549,1746094249744,-500.0,0.00035616,2]
[359529550,1746094249753,-500.0,0.00035616,2]
[359529551,1746094249762,-500.0,0.00035616,2]
[359529552,1746094249771,-500.0,0.00035616,2]
[359529553,1746094249780,-500.0,0.00035616,2]
[359529554,1746094249789,-500.0,0.00035616,2]
[359529555,1746094249798,-500.0,0.00035616,2]
[359529556,1746094249807,-500.0,0.00035616,2]
[359529557,1746094249816,-500.0,0.00035616,2]
[359529558,1746094249825,-500.0,0.00035616,2]
[359529559,1746094249834,-500.0,0.00035616,2]
[359529560,1746094249843,-500.0,0.00035616,2]
[359529561,1746094249852,-500.0,0.00035616,2]
[359529562,1746094249861,-500.0,0.00035616,2]
[359529563,1746094249870,-500.0,0.00035616,2]
[359529564,1746094249880,-500.0,0.00035616,2]
[359529565,1746094249889,-577.986666,0.00035616,2]
[359529566,1746094249898,-500.0,0.00035616,2]
[359529567,1746094249907,-500.0,0.00035616,2]
[359529568,1746094249916,-393.63615385,0.00035616,2]
[359529569,1746094249926,-151.0,0.00035616,2]
[359529570,1746094249935,-151.16841614,0.00035616,2]
[359529571,1746094249945,-151.0,0.00035616,2]
[359529572,1746094249954,-151.0,0.00035616,2]
[359529573,1746094249963,-151.0,0.00035616,2]
[359529574,1746094249972,-151.59651274,0.00035616,2]
[359529575,1746094249982,-500.0,0.00035616,2]
[359529576,1746094249991,-500.0,0.00035616,2]
[359529577,1746094250000,-500.0,0.00035616,2]
[359529578,1746094250010,-500.0,0.00035616,2]
[359529579,1746094250019,-500.0,0.00035616,2]
[359529580,1746094250029,-500.0,0.00035616,2]
[359529581,1746094250038,-500.0,0.00035616,2]
[359529582,1746094250047,-502.19650174,0.00035616,2]
[359529583,1746094250057,-500.0,0.00035616,2]
[359529584,1746094250066,-500.0,0.00035616,2]
[359529585,1746094250075,-500.0,0.00035616,2]
[359529586,1746094250084,-500.0,0.00035616,2]
[359529587,1746094250093,-500.0,0.00035616,2]
[359529588,1746094250102,-500.0,0.00035616,2]
[359529589,1746094250110,-500.0,0.00035616,2]
[359529590,1746094250119,-512.61073782,0.00035616,2]
[359529591,1746094250128,-151.0,0.00035616,2]
[359529592,1746094250138,-151.0,0.00035616,2]
[359529593,1746094250148,-151.0,0.00035616,2]
[359529594,1746094250157,-151.39259411,0.00035616,2]